[Event "Titled Tuesday Blitz July 13 2021"]
[White "Tsaruk, Maksim"]
[Black "Przybylski, Wojciech"]
[WhiteFideId "13511173"]
[BlackFideId "1117599"]
[WhiteElo "2184"]
[BlackElo "2317"]
[Result "1-0"]
[Round "11"]
[TimeControl "180+1"]
[Date "2021.07.13"]
[WhiteClock "0:00:02"]
[BlackClock "0:00:03"]

1. e4 {[%clk 0:03:00]}  e5 {[%clk 0:02:58]} 2. Nf3 {[%clk 0:03:01]}  Nc6 {[%clk 0:02:58]} 3. Bb5 {[%clk 0:03:00]}  Nf6 {[%clk 0:02:58]} 4. d3 {[%clk 0:03:00]}  d6 {[%clk 0:02:57]} 5. O-O {[%clk 0:03:00]}  Be7 {[%clk 0:02:58]} 6. c3 {[%clk 0:03:00]}  O-O {[%clk 0:02:58]} 7. Re1 {[%clk 0:02:59]}  Bd7 {[%clk 0:02:58]} 8. d4 {[%clk 0:02:59]}  a6 {[%clk 0:02:51]} 9. Ba4 {[%clk 0:02:58]}  exd4 {[%clk 0:02:46]} 10. cxd4 {[%clk 0:02:58]}  d5 {[%clk 0:02:46]} 11. e5 {[%clk 0:02:57]}  Ne4 {[%clk 0:02:46]} 12. Nc3 {[%clk 0:02:52]}  Nxc3 {[%clk 0:02:36]} 13. bxc3 {[%clk 0:02:53]}  Bf5 {[%clk 0:02:31]} 14. Bc2 {[%clk 0:02:22]}  Qd7 {[%clk 0:02:31]} 15. Rb1 {[%clk 0:02:22]}  b5 {[%clk 0:02:29]} 16. h3 {[%clk 0:02:20]}  Na5 {[%clk 0:02:07]} 17. Bf4 {[%clk 0:01:59]}  Nc4 {[%clk 0:02:02]} 18. Bd3 {[%clk 0:01:35]}  c6 {[%clk 0:01:41]} 19. Re2 {[%clk 0:01:33]}  a5 {[%clk 0:01:34]} 20. g4 {[%clk 0:01:29]}  Bxd3 {[%clk 0:01:33]} 21. Qxd3 {[%clk 0:01:30]}  b4 {[%clk 0:01:30]} 22. Ng5 {[%clk 0:01:13]}  Bxg5 {[%clk 0:01:22]} 23. Bxg5 {[%clk 0:01:14]}  bxc3 {[%clk 0:01:17]} 24. Qxc3 {[%clk 0:01:15]}  Rab8 {[%clk 0:01:16]} 25. Rbe1 {[%clk 0:01:15]}  a4 {[%clk 0:01:03]} 26. Kg2 {[%clk 0:00:48]}  a3 {[%clk 0:01:03]} 27. Bc1 {[%clk 0:00:48]}  Qa7 {[%clk 0:00:33]} 28. f4 {[%clk 0:00:41]}  c5 {[%clk 0:00:32]} 29. dxc5 {[%clk 0:00:23]}  Qxc5 {[%clk 0:00:33]} 30. f5 {[%clk 0:00:23]}  d4 {[%clk 0:00:32]} 31. Qf3 {[%clk 0:00:18]}  Rbd8 {[%clk 0:00:24]} 32. e6 {[%clk 0:00:09]}  fxe6 {[%clk 0:00:23]} 33. Rxe6 {[%clk 0:00:09]}  d3 {[%clk 0:00:20]} 34. Rc6 {[%clk 0:00:09]}  Qd4 {[%clk 0:00:19]} 35. Re4 {[%clk 0:00:09]}  Qd5 {[%clk 0:00:18]} 36. Rexc4 {[%clk 0:00:08]}  d2 {[%clk 0:00:18]} 37. Qxd5+ {[%clk 0:00:03]}  Rxd5 {[%clk 0:00:19]} 38. Bxd2 {[%clk 0:00:02]}  Rxd2+ {[%clk 0:00:20]} 39. Kg3 {[%clk 0:00:03]}  Rxa2 {[%clk 0:00:20]} 40. Ra4 {[%clk 0:00:03]}  Ra1 {[%clk 0:00:07]} 41. Rc7 {[%clk 0:00:03]}  Kh8 {[%clk 0:00:03]} 42. Raa7 {[%clk 0:00:02]} 1-0


[Site "https://www.chess.com"]

[Event "Titled Tuesday Blitz July 13 2021"]
[White "Viskelis, Darius"]
[Black "Grebeniuk, Semen"]
[WhiteFideId "12800830"]
[BlackFideId "14117509"]
[WhiteElo "2006"]
[BlackElo "2232"]
[Result "1/2-1/2"]
[Round "11"]
[TimeControl "180+1"]
[Date "2021.07.13"]
[WhiteClock "0:00:02"]
[BlackClock "0:00:53"]

1. e4 {[%clk 0:03:00]}  c5 {[%clk 0:03:00]} 2. Nf3 {[%clk 0:03:00]}  g6 {[%clk 0:03:00]} 3. d4 {[%clk 0:02:53]}  cxd4 {[%clk 0:03:01]} 4. Nxd4 {[%clk 0:02:53]}  Bg7 {[%clk 0:03:01]} 5. Nc3 {[%clk 0:02:49]}  Nc6 {[%clk 0:03:02]} 6. Be3 {[%clk 0:02:48]}  Nf6 {[%clk 0:03:02]} 7. Be2 {[%clk 0:02:37]}  O-O {[%clk 0:03:01]} 8. Nb3 {[%clk 0:02:32]}  d6 {[%clk 0:02:59]} 9. O-O {[%clk 0:02:32]}  Be6 {[%clk 0:02:58]} 10. f4 {[%clk 0:02:25]}  Qc8 {[%clk 0:02:57]} 11. h3 {[%clk 0:02:20]}  Rd8 {[%clk 0:02:57]} 12. Nd5 {[%clk 0:02:12]}  Nxe4 {[%clk 0:02:52]} 13. Bf3 {[%clk 0:01:57]}  Nf6 {[%clk 0:02:46]} 14. c3 {[%clk 0:01:51]}  Bxd5 {[%clk 0:02:46]} 15. Bxd5 {[%clk 0:01:51]}  Nxd5 {[%clk 0:02:45]} 16. Qxd5 {[%clk 0:01:52]}  e6 {[%clk 0:02:45]} 17. Qf3 {[%clk 0:01:48]}  d5 {[%clk 0:02:45]} 18. Rad1 {[%clk 0:01:40]}  b6 {[%clk 0:02:42]} 19. f5 {[%clk 0:01:35]}  Ne5 {[%clk 0:02:35]} 20. Qg3 {[%clk 0:01:29]}  exf5 {[%clk 0:02:35]} 21. Nd4 {[%clk 0:01:22]}  Nc4 {[%clk 0:02:35]} 22. Nxf5 {[%clk 0:01:20]}  Nxe3 {[%clk 0:02:31]} 23. Ne7+ {[%clk 0:01:20]}  Kh8 {[%clk 0:02:28]} 24. Nxc8 {[%clk 0:01:19]}  Nxf1 {[%clk 0:02:29]} 25. Rxf1 {[%clk 0:01:16]}  Raxc8 {[%clk 0:02:29]} 26. Rxf7 {[%clk 0:01:16]}  Rf8 {[%clk 0:02:20]} 27. Rxa7 {[%clk 0:01:01]}  d4 {[%clk 0:02:20]} 28. cxd4 {[%clk 0:00:38]}  Bxd4+ {[%clk 0:02:18]} 29. Kh2 {[%clk 0:00:38]}  Rc1 {[%clk 0:02:15]} 30. Rxh7+ {[%clk 0:00:26]}  Kxh7 {[%clk 0:02:11]} 31. Qh4+ {[%clk 0:00:26]}  Kg8 {[%clk 0:02:08]} 32. Qxd4 {[%clk 0:00:27]}  Rc5 {[%clk 0:01:58]} 33. Qd6 {[%clk 0:00:25]}  Kg7 {[%clk 0:01:49]} 34. Qxb6 {[%clk 0:00:23]}  Rcf5 {[%clk 0:01:50]} 35. Qd4+ {[%clk 0:00:22]}  Kh7 {[%clk 0:01:49]} 36. a4 {[%clk 0:00:21]}  Rf4 {[%clk 0:01:49]} 37. Qd7+ {[%clk 0:00:20]}  R8f7 {[%clk 0:01:50]} 38. Qc6 {[%clk 0:00:19]}  Rb4 {[%clk 0:01:44]} 39. a5 {[%clk 0:00:09]}  Rxb2 {[%clk 0:01:43]} 40. a6 {[%clk 0:00:09]}  Rg7 {[%clk 0:01:28]} 41. Qc4 {[%clk 0:00:06]}  Rb8 {[%clk 0:01:19]} 42. Qh4+ {[%clk 0:00:05]}  Kg8 {[%clk 0:01:19]} 43. Qc4+ {[%clk 0:00:05]}  Kh8 {[%clk 0:01:17]} 44. Qc6 {[%clk 0:00:05]}  Rf8 {[%clk 0:01:09]} 45. Qd6 {[%clk 0:00:05]}  Rff7 {[%clk 0:01:09]} 46. Qd8+ {[%clk 0:00:05]}  Kh7 {[%clk 0:01:09]} 47. Qh4+ {[%clk 0:00:05]}  Kg8 {[%clk 0:01:09]} 48. Qd8+ {[%clk 0:00:05]}  Kh7 {[%clk 0:01:09]} 49. Qh4+ {[%clk 0:00:05]}  Kg8 {[%clk 0:01:09]} 50. Qd8+ {[%clk 0:00:05]}  Rf8 {[%clk 0:01:10]} 51. Qd5+ {[%clk 0:00:05]}  Kh7 {[%clk 0:01:07]} 52. Qe4 {[%clk 0:00:04]}  Rf5 {[%clk 0:01:04]} 53. Qh4+ {[%clk 0:00:03]}  Rh5 {[%clk 0:01:05]} 54. Qd4 {[%clk 0:00:03]}  Ra5 {[%clk 0:00:58]} 55. Qh4+ {[%clk 0:00:02]}  Rh5 {[%clk 0:00:59]} 56. Qd4 {[%clk 0:00:02]}  Ra5 {[%clk 0:00:52]} 57. Qh4+ {[%clk 0:00:02]}  Rh5 {[%clk 0:00:53]} 1/2-1/2


[Site "https://www.chess.com"]

[Event "Titled Tuesday Blitz July 13 2021"]
[White "Vlassov, Nikolai"]
[Black "Maly, Alexey"]
[WhiteFideId "4103360"]
[BlackFideId "14103184"]
[WhiteElo "2407"]
[BlackElo "2285"]
[Result "1-0"]
[Round "11"]
[TimeControl "180+1"]
[Date "2021.07.13"]
[WhiteClock "0:00:20"]
[BlackClock "0:00:01"]

1. e4 {[%clk 0:03:00]}  c6 {[%clk 0:02:59]} 2. d4 {[%clk 0:03:00]}  d5 {[%clk 0:02:58]} 3. e5 {[%clk 0:03:00]}  Bf5 {[%clk 0:02:58]} 4. Nc3 {[%clk 0:03:00]}  e6 {[%clk 0:02:56]} 5. g4 {[%clk 0:03:00]}  Bg6 {[%clk 0:02:55]} 6. Nge2 {[%clk 0:03:01]}  c5 {[%clk 0:02:54]} 7. Be3 {[%clk 0:03:01]}  cxd4 {[%clk 0:02:49]} 8. Nxd4 {[%clk 0:03:01]}  Nd7 {[%clk 0:02:38]} 9. f4 {[%clk 0:03:00]}  Ne7 {[%clk 0:02:26]} 10. Ncb5 {[%clk 0:02:28]}  Nc6 {[%clk 0:02:22]} 11. f5 {[%clk 0:02:28]}  Ncxe5 {[%clk 0:02:14]} 12. fxg6 {[%clk 0:02:25]}  hxg6 {[%clk 0:02:15]} 13. Be2 {[%clk 0:02:16]}  Qh4+ {[%clk 0:02:09]} 14. Bf2 {[%clk 0:02:16]}  Qd8 {[%clk 0:02:01]} 15. Qd2 {[%clk 0:02:12]}  Be7 {[%clk 0:01:58]} 16. O-O-O {[%clk 0:02:04]}  a6 {[%clk 0:01:55]} 17. Nc3 {[%clk 0:02:00]}  Rc8 {[%clk 0:01:50]} 18. Kb1 {[%clk 0:01:58]}  b5 {[%clk 0:01:47]} 19. h4 {[%clk 0:01:49]}  b4 {[%clk 0:01:40]} 20. Na4 {[%clk 0:01:48]}  Qa5 {[%clk 0:01:35]} 21. b3 {[%clk 0:01:47]}  Nc5 {[%clk 0:01:28]} 22. Nxc5 {[%clk 0:01:40]}  Rxc5 {[%clk 0:01:29]} 23. h5 {[%clk 0:01:35]}  gxh5 {[%clk 0:01:26]} 24. Rxh5 {[%clk 0:01:33]}  Rxh5 {[%clk 0:01:26]} 25. gxh5 {[%clk 0:01:34]}  Bf6 {[%clk 0:01:22]} 26. h6 {[%clk 0:01:29]}  gxh6 {[%clk 0:01:15]} 27. Qxh6 {[%clk 0:01:28]}  Ke7 {[%clk 0:01:14]} 28. Bh4 {[%clk 0:01:20]}  Bxh4 {[%clk 0:01:11]} 29. Qxh4+ {[%clk 0:01:21]}  Kd7 {[%clk 0:01:11]} 30. Qf6 {[%clk 0:01:17]}  Qc7 {[%clk 0:01:08]} 31. Nf3 {[%clk 0:01:15]}  Nxf3 {[%clk 0:01:04]} 32. Qxf7+ {[%clk 0:01:15]}  Kd6 {[%clk 0:01:03]} 33. Qxf3 {[%clk 0:01:07]}  Rxc2 {[%clk 0:00:55]} 34. Qf4+ {[%clk 0:01:04]}  Kd7 {[%clk 0:00:52]} 35. Qf7+ {[%clk 0:00:58]}  Kd6 {[%clk 0:00:49]} 36. Qf8+ {[%clk 0:00:58]}  Kd7 {[%clk 0:00:46]} 37. Bd3 {[%clk 0:00:48]}  Rc3 {[%clk 0:00:44]} 38. Bxa6 {[%clk 0:00:45]}  Kc6 {[%clk 0:00:35]} 39. Qxb4 {[%clk 0:00:43]}  Qh7+ {[%clk 0:00:32]} 40. Ka1 {[%clk 0:00:40]}  Rc5 {[%clk 0:00:32]} 41. Bd3 {[%clk 0:00:36]}  Qh5 {[%clk 0:00:30]} 42. Qd2 {[%clk 0:00:32]}  Qe5+ {[%clk 0:00:27]} 43. Kb1 {[%clk 0:00:32]}  Qf6 {[%clk 0:00:22]} 44. Rc1 {[%clk 0:00:30]}  Rxc1+ {[%clk 0:00:20]} 45. Qxc1+ {[%clk 0:00:30]}  Kb7 {[%clk 0:00:21]} 46. Qd2 {[%clk 0:00:27]}  e5 {[%clk 0:00:16]} 47. Qb4+ {[%clk 0:00:26]}  Kc7 {[%clk 0:00:13]} 48. Qc5+ {[%clk 0:00:25]}  Kb8 {[%clk 0:00:08]} 49. Qxd5 {[%clk 0:00:24]}  Qf4 {[%clk 0:00:03]} 50. Be4 {[%clk 0:00:23]}  Qf1+ {[%clk 0:00:02]} 51. Kb2 {[%clk 0:00:22]}  Qe2+ {[%clk 0:00:02]} 52. Kc3 {[%clk 0:00:21]}  Qe3+ {[%clk 0:00:02]} 53. Kc4 {[%clk 0:00:21]}  Qe2+ {[%clk 0:00:02]} 54. Kc5 {[%clk 0:00:21]}  Qf2+ {[%clk 0:00:01]} 55. Kd6 {[%clk 0:00:21]}  Qb6+ {[%clk 0:00:01]} 56. Kxe5 {[%clk 0:00:20]}  Qc7+ {[%clk 0:00:01]} 57. Qd6 {[%clk 0:00:20]} 1-0


[Site "https://www.chess.com"]

[Event "Titled Tuesday Blitz July 13 2021"]
[White "ketster"]
[Black "Gelman, Alexander"]
[BlackFideId "4118316"]
[WhiteElo "2455"]
[BlackElo "2375"]
[Result "0-1"]
[Round "11"]
[TimeControl "180+1"]
[Date "2021.07.13"]
[WhiteClock "0:00:02"]
[BlackClock "0:00:06"]

1. d4 {[%clk 0:03:00]}  Nf6 {[%clk 0:02:58]} 2. c4 {[%clk 0:03:00]}  c5 {[%clk 0:02:59]} 3. d5 {[%clk 0:02:59]}  b5 {[%clk 0:02:59]} 4. cxb5 {[%clk 0:02:59]}  a6 {[%clk 0:02:59]} 5. bxa6 {[%clk 0:03:00]}  e6 {[%clk 0:02:59]} 6. Nc3 {[%clk 0:03:01]}  exd5 {[%clk 0:03:00]} 7. Nxd5 {[%clk 0:03:01]}  Nxa6 {[%clk 0:03:00]} 8. Bg5 {[%clk 0:02:39]}  Bb7 {[%clk 0:03:00]} 9. Nxf6+ {[%clk 0:02:28]}  gxf6 {[%clk 0:03:01]} 10. Bd2 {[%clk 0:02:25]}  Qb6 {[%clk 0:02:49]} 11. Bc3 {[%clk 0:02:15]}  Nb4 {[%clk 0:02:49]} 12. e3 {[%clk 0:02:09]}  Be4 {[%clk 0:02:45]} 13. Bxb4 {[%clk 0:02:01]}  cxb4 {[%clk 0:02:25]} 14. Nf3 {[%clk 0:01:51]}  b3 {[%clk 0:02:23]} 15. Bd3 {[%clk 0:01:35]}  Qb4+ {[%clk 0:01:31]} 16. Ke2 {[%clk 0:01:30]}  Rxa2 {[%clk 0:01:16]} 17. Rb1 {[%clk 0:01:11]}  f5 {[%clk 0:01:09]} 18. Nd4 {[%clk 0:01:04]}  Bd5 {[%clk 0:00:42]} 19. Nxf5 {[%clk 0:00:56]}  Rg8 {[%clk 0:00:39]} 20. Ng3 {[%clk 0:00:42]}  Bxg2 {[%clk 0:00:34]} 21. Rg1 {[%clk 0:00:42]}  Qg4+ {[%clk 0:00:31]} 22. Kd2 {[%clk 0:00:30]}  Bf3 {[%clk 0:00:28]} 23. Qxb3 {[%clk 0:00:19]}  Bb4+ {[%clk 0:00:24]} 24. Kc2 {[%clk 0:00:17]}  Ra8 {[%clk 0:00:24]} 25. Rbc1 {[%clk 0:00:16]}  Rg5 {[%clk 0:00:15]} 26. Ne4 {[%clk 0:00:15]}  Qxe4 {[%clk 0:00:09]} 27. Rxg5 {[%clk 0:00:12]}  Qc6+ {[%clk 0:00:08]} 28. Kb1 {[%clk 0:00:12]}  Ra1+ {[%clk 0:00:06]} 29. Kxa1 {[%clk 0:00:11]}  Qxc1+ {[%clk 0:00:07]} 30. Ka2 {[%clk 0:00:11]}  Bd6 {[%clk 0:00:05]} 31. Rg8+ {[%clk 0:00:10]}  Ke7 {[%clk 0:00:06]} 32. Rg7 {[%clk 0:00:10]}  Qc6 {[%clk 0:00:04]} 33. Qxf7+ {[%clk 0:00:10]}  Kd8 {[%clk 0:00:05]} 34. Rg8+ {[%clk 0:00:09]}  Kc7 {[%clk 0:00:05]} 35. Qc4 {[%clk 0:00:08]}  Bd5 {[%clk 0:00:05]} 36. Rg4 {[%clk 0:00:04]}  Kd8 {[%clk 0:00:02]} 37. Rg8+ {[%clk 0:00:03]}  Ke7 {[%clk 0:00:02]} 38. Rg7+ {[%clk 0:00:03]}  Kf8 {[%clk 0:00:03]} 39. Rf7+ {[%clk 0:00:02]}  Kxf7 {[%clk 0:00:01]} 40. Bg6+ {[%clk 0:00:01]}  hxg6 {[%clk 0:00:01]} 41. e4 {[%clk 0:00:01]}  Bxc4+ {[%clk 0:00:01]} 42. b3 {[%clk 0:00:02]}  Qxe4 {[%clk 0:00:02]} 43. bxc4 {[%clk 0:00:01]}  Qe2+ {[%clk 0:00:02]} 44. Kb3 {[%clk 0:00:01]}  Qd3+ {[%clk 0:00:03]} 45. Ka4 {[%clk 0:00:02]}  Qxc4+ {[%clk 0:00:04]} 46. Ka5 {[%clk 0:00:02]}  Qb4+ {[%clk 0:00:05]} 47. Ka6 {[%clk 0:00:02]}  Bc5 {[%clk 0:00:06]} 48. f4 {[%clk 0:00:02]}  Qb6# {[%clk 0:00:06]} 0-1


[Site "https://www.chess.com"]